Workbook

Sheet Read_Me
A1: In order for this spreadsheet to work, you must…
A3: 1) Enable Macros
A18: 2) Open the VB Editor
A28: 3) Write the macro

Sheet Formulae
A1: Black Scholes Formulae :
A3: Intermediate Calculations:
A5: d1=IF(ISBLANK(DividendYield),LN(SpotPrice/B6)+((RiskFreeRate + (0.5*(sigma^2)))*TimeToMaturity),LN(SpotPrice/B6)+((RiskFreeRate -DividendYield+ (0.5*(sigma^2)))*TimeToMaturity))/(sigma*TimeToMaturity^0.5)
A6: d2=d1-sigma*TimeToMaturity^0.5
A7: nd1=normsdist(d1)
A8: nd2=normsdist(d2)
A9: nd1'=1/(2*PI())^0.5*(EXP(-(d1^2)/2))
A10: call=(SpotPrice*nd1)-(Strike*exp(-RiskFreeRate*TimetoMaturity)*nd2)
A11: put=(SpotPrice*exp(-RiskFreeRate*TimetoMaturity)*normsdist(-d2))-(SpotPrice*normsdist(-d1))
A13: Greek | B13: Call | C13: Put
A14: Delta | B14: nd1*EXP(-DividendYield * TimeToMaturity) | C14: (nd1 - 1) * EXP(-DividendYield * TimeToMaturity)
A15: Gamma | B15: (nd1' * EXP(-DividendYield * TimeToMaturity)) / (SpotPrice * sigma * (TimeToMaturity ^ (1 / 2))) | C15: (nd1' * EXP(-DividendYield * TimeToMaturity)) / (SpotPrice * sigma * (TimeToMaturity ^ (1 / 2)))
A16: Vega | B16: SpotPrice * (TimeToMaturity ^ (1 / 2)) * nd1` * EXP(-DividendYield * TimeToMaturity) | C16: SpotPrice * (TimeToMaturity ^ (1 / 2)) * nd1` * EXP(-DividendYield * TimeToMaturity)
A17: Theta | B17: -(SpotPrice * nd1` * sigma * EXP(-DividendYield * TimeToMaturity)) / (2 * (TimeToMaturity ^ (1 / 2))) | C17: -(SpotPrice * nd1` * sigma * EXP(-DividendYield * TimeToMaturity)) / (2 * (TimeToMaturity ^ (1 / 2)))
B18: + (DividendYield * SpotPrice * nd1 * EXP(-DividendYield * TimeToMaturity)) | C18: - (DividendYield * SpotPrice * NORMSDIST(-d1) * EXP(-DividendYield * TimeToMaturity))
B19: - (RiskFreeRate * StrikePrice * EXP(-RiskFreeRate * TimeToMaturity) * nd2) | C19: + (RiskFreeRate * StrikePrice * EXP(-RiskFreeRate * TimeToMaturity) * NORMSDIST(-nd2))

Sheet Greeks
A1: =Calculator!A37 -> Greeks:
A3: Greek | B3: Call | C3: Put
A4: =Calculator!A39 -> Value | B4: =Calculator!B39 -> 7.034946734 | C4: =Calculator!C39 -> 77.22403026
A5: =Calculator!A40 -> Delta | B5: =Calculator!B40 -> 0.189552282 | C5: =Calculator!C40 -> -0.810447718
A6: =Calculator!A41 -> Gamma | B6: =Calculator!B41 -> 0.003812073902 | C6: =Calculator!C41 -> 0.003812073902
A7: =Calculator!A42 -> Vega | B7: =Calculator!B42 -> 71.45639113 | C7: =Calculator!C42 -> 71.45639113
A8: =Calculator!A43 -> Theta | B8: =Calculator!B43 -> -55.84290008 | C8: =Calculator!C43 -> -51.67129933

Sheet Calculator
A1: Stock Quote | B1: [Enter Stock Symbol] | F1: Xignite Free Trial ID: | G1: [Enter Xignite Trial ID]
A3: End date (for volatility calculation): | C3: [Enter End Date]
D4: ='Historic Volatility'!D251 -> 0.2695541249
A7: Black Scholes Value:
A9: ns2:Symbol | B9: ns2:Last | C9: ns2:OptionSymbol | D9: ns2:Type | E9: ns2:Month | F9: ns2:Year | G9: ns2:StrikePrice | H9: ns2:Bid | I9: ns2:Ask | J9: ns2:Change | K9: ns2:Last | L9: ns2:Value
A10: GOOG | B10: 628.58 | C10: GOOGC17123700000 | D10: Call | E10: 3 | F10: 2012 | G10: 700 | H10: 6.4 | I10: 6.8 | J10: 0 | K10: 6.5 | L10: 6.162207736
A12: Today's Date: | B12: =NOW() -> 2012-01-17T16:58:00.260
A13: Expiration Date: | B13: 2012-03-17
A14: Term (Days): | B14: =NETWORKDAYS(B12,B13) -> 44
A15: Term (Years): | B15: =B14/250 -> 0.176
A17: Black-Scholes Inputs:
A19: Stock Price: | B19: =B10 -> 628.58
A20: Strike: | B20: 700
A21: Volatility: | B21: =D4 -> 0.2695541249
A22: Risk Free Rate: | B22: 0.01
A23: Term: | B23: =B15 -> 0.176
A24: Dividend Yield: | B24: 0
A25: Expiration Month: | B25: 3
A26: Expiration Year: | B26: 2012
A28: Intermediate Calculations:
A29: d1: | B29: =(LN(B19/B20)+(B22+B21^2/2)*B23)/(B21*SQRT(B23)) -> -0.8795473639
A30: d2: | B30: =B29-B21*SQRT(B23) -> -0.9926316644
A31: nd1: | B31: =NORMSDIST(B29) -> 0.189552282
A32: nd2: | B32: =NORMSDIST(B30) -> 0.160444744
A33: n'd1: | B33: =1/(2*PI())^0.5*(EXP(-(B29^2)/2)) -> 0.270971856
A34: Call: | B34: =EXP(-B22*B23)*(B19*B31*EXP(B22*B23)-B20*B32) -> 7.034946734
A35: Put: | B35: =B20*EXP(-B22*B23)*NORMSDIST(-B30)-(B19*NORMSDIST(-B29)) -> 77.22403026
A37: Greeks: | B37: Call | C37: Put
A39: Value | B39: =B34 -> 7.034946734 | C39: =B35 -> 77.22403026
A40: Delta | B40: =B31*EXP(-B24 * B23) -> 0.189552282 | C40: =(B31-1)*EXP(-B23*B24) -> -0.810447718
A41: Gamma | B41: =(B33* EXP(-B24 * B23)) / (B19 * B21* (B23 ^ (1 / 2))) -> 0.003812073902 | C41: =B41*EXP(-B24 * B23) -> 0.003812073902
A42: Vega | B42: =B19 * (B23 ^ (1 / 2)) * B33* EXP(-B24 * B23) -> 71.45639113 | C42: =B42 -> 71.45639113
A43: Theta | B43: =-(B19 * B33 * B21 * EXP(-B24 * B23)) / (2 * (B23 ^ (1 / 2))) + (B24 * B19 * B31 * EXP(-B24 * B23)) - (B22 * B20 * EXP(-B22 * B24) * B32) -> -55.84290008 | C43: =-(B19*B33*B21*EXP(-B24*B23))/(2*(B23^(1/2)))-(B24*B19*NORMSDIST(-B29)*EXP(-B24*B23))+(B22 * B20 * EXP(-B22 * B23) * NORMSDIST(-B32)) -> -51.67129933

Sheet Historic Volatility
A1: ns1:Symbol | B1: ns1:Date | C1: ns1:Last | D1: Log Realtive Prices
A2: goog | B2: 1/14/2011 | C2: 624.18
A3: goog | B3: 1/13/2011 | C3: 616.69 | D3: =LN(C3/C2) -> -0.01207232178
A4: goog | B4: 1/12/2011 | C4: 616.87 | D4: 0.0002918382588
A5: goog | B5: 1/11/2011 | C5: 616.01 | D5: -0.001395107617
A6: goog | B6: 1/10/2011 | C6: 614.21 | D6: -0.002926307952
A7: goog | B7: 1/7/2011 | C7: 616.44 | D7: 0.003624105051
A8: goog | B8: 1/6/2011 | C8: 613.5 | D8: -0.004780730116
A9: goog | B9: 1/5/2011 | C9: 609.07 | D9: -0.007247060518
A10: goog | B10: 1/4/2011 | C10: 602.12 | D10: -0.01147644264
A11: goog | B11: 1/3/2011 | C11: 604.35 | D11: 0.003696739313
A12: goog | B12: 12/31/2010 | C12: 593.97 | D12: -0.01732468727
A13: goog | B13: 12/30/2010 | C13: 598.86 | D13: 0.00819903489
A14: goog | B14: 12/29/2010 | C14: 601 | D14: 0.003567086609
A15: goog | B15: 12/28/2010 | C15: 598.92 | D15: -0.003466901266
A16: goog | B16: 12/27/2010 | C16: 602.38 | D16: 0.005760442134
A17: goog | B17: 12/23/2010 | C17: 604.23 | D17: 0.00306644475
A18: goog | B18: 12/22/2010 | C18: 605.49 | D18: 0.002083127427
A19: goog | B19: 12/21/2010 | C19: 603.07 | D19: -0.004004771355
A20: goog | B20: 12/20/2010 | C20: 595.06 | D20: -0.01337103543
A21: goog | B21: 12/17/2010 | C21: 590.8 | D21: -0.00718469014
A22: goog | B22: 12/16/2010 | C22: 591.71 | D22: 0.001539099339
A23: goog | B23: 12/15/2010 | C23: 590.3 | D23: -0.00238576775
A24: goog | B24: 12/14/2010 | C24: 594.91 | D24: 0.007779251354
A25: goog | B25: 12/13/2010 | C25: 594.62 | D25: -0.0004875875442
A26: goog | B26: 12/10/2010 | C26: 592.21 | D26: -0.004061244344
A27: goog | B27: 12/9/2010 | C27: 591.5 | D27: -0.001199618294
A28: goog | B28: 12/8/2010 | C28: 590.54 | D28: -0.001624310871
A29: goog | B29: 12/7/2010 | C29: 587.14 | D29: -0.005774080304
A30: goog | B30: 12/6/2010 | C30: 578.36 | D30: -0.01506678008
A31: goog | B31: 12/3/2010 | C31: 573 | D31: -0.009310795445
A32: goog | B32: 12/2/2010 | C32: 571.82 | D32: -0.002061460173
A33: goog | B33: 12/1/2010 | C33: 564.35 | D33: -0.01314963014
A34: goog | B34: 11/30/2010 | C34: 555.71 | D34: -0.01542805096
A35: goog | B35: 11/29/2010 | C35: 582.11 | D35: 0.04641285786
A36: goog | B36: 11/26/2010 | C36: 590 | D36: 0.01346310359
A37: goog | B37: 11/24/2010 | C37: 594.97 | D37: 0.008388447207
A38: goog | B38: 11/23/2010 | C38: 583.01 | D38: -0.02030664524
A39: goog | B39: 11/22/2010 | C39: 591.22 | D39: 0.0139838597
A40: goog | B40: 11/19/2010 | C40: 590.83 | D40: -0.0006598705878
A41: goog | B41: 11/18/2010 | C41: 596.56 | D41: 0.009651495262
A42: goog | B42: 11/17/2010 | C42: 583.55 | D42: -0.02204968538
A43: goog | B43: 11/16/2010 | C43: 583.72 | D43: 0.0002912779412
A44: goog | B44: 11/15/2010 | C44: 595.47 | D44: 0.01992959389
A45: goog | B45: 11/12/2010 | C45: 603.29 | D45: 0.01304700012
A46: goog | B46: 11/11/2010 | C46: 617.19 | D46: 0.02277890835
A47: goog | B47: 11/10/2010 | C47: 622.88 | D47: 0.009176965708
A48: goog | B48: 11/9/2010 | C48: 624.82 | D48: 0.003109724394
A49: goog | B49: 11/8/2010 | C49: 626.77 | D49: 0.003116038923
A50: goog | B50: 11/5/2010 | C50: 625.08 | D50: -0.002700005634
A51: goog | B51: 11/4/2010 | C51: 624.27 | D51: -0.001296674452
A52: goog | B52: 11/3/2010 | C52: 620.18 | D52: -0.006573208608
A53: goog | B53: 11/2/2010 | C53: 615.6 | D53: -0.00741235652
A54: goog | B54: 11/1/2010 | C54: 615 | D54: -0.0009751341582
A55: goog | B55: 10/29/2010 | C55: 613.7 | D55: -0.002116058411
A56: goog | B56: 10/28/2010 | C56: 618.58 | D56: 0.007920319263
A57: goog | B57: 10/27/2010 | C57: 616.47 | D57: -0.003416869038
A58: goog | B58: 10/26/2010 | C58: 618.6 | D58: 0.003449200631
A59: goog | B59: 10/25/2010 | C59: 616.5 | D59: -0.003400537647
A60: goog | B60: 10/22/2010 | C60: 612.53 | D60: -0.006460401793
A61: goog | B61: 10/21/2010 | C61: 611.99 | D61: -0.0008819783017
A62: goog | B62: 10/20/2010 | C62: 607.98 | D62: -0.006573955821
A63: goog | B63: 10/19/2010 | C63: 607.83 | D63: -0.0002467490821
A64: goog | B64: 10/18/2010 | C64: 617.71 | D64: 0.01612385405
A65: goog | B65: 10/15/2010 | C65: 601.45 | D65: -0.02667568522
A66: goog | B66: 10/14/2010 | C66: 540.93 | D66: =LN(C66/C65) -> -0.106053526
A67: goog | B67: 10/13/2010 | C67: 543.3 | D67: 0.004371773101
A68: goog | B68: 10/12/2010 | C68: 541.39 | D68: -0.00352174718
A69: goog | B69: 10/11/2010 | C69: 538.84 | D69: -0.004721225548
A70: goog | B70: 10/8/2010 | C70: 536.35 | D70: -0.004631747787
A71: goog | B71: 10/7/2010 | C71: 530.01 | D71: -0.01189105875
A72: goog | B72: 10/6/2010 | C72: 534.35 | D72: 0.008155180678
A73: goog | B73: 10/5/2010 | C73: 538.23 | D73: 0.007234923128
A74: goog | B74: 10/4/2010 | C74: 522.35 | D74: -0.02994811682
A75: goog | B75: 10/1/2010 | C75: 525.62 | D75: 0.006240656913
A76: goog | B76: 9/30/2010 | C76: 525.79 | D76: 0.0003233752798
A77: goog | B77: 9/29/2010 | C77: 527.69 | D77: 0.003607096594
A78: goog | B78: 9/28/2010 | C78: 527.17 | D78: -0.0009859129024
A79: goog | B79: 9/27/2010 | C79: 530.41 | D79: 0.006127215221
A80: goog | B80: 9/24/2010 | C80: 527.29 | D80: -0.005899610569
A81: goog | B81: 9/23/2010 | C81: 513.48 | D81: -0.0265396016
A82: goog | B82: 9/22/2010 | C82: 516 | D82: 0.004895685265
A83: goog | B83: 9/21/2010 | C83: 513.46 | D83: -0.004934635934
A84: goog | B84: 9/20/2010 | C84: 508.28 | D84: -0.01013965271
A85: goog | B85: 9/17/2010 | C85: 490.15 | D85: -0.03632101013
A86: goog | B86: 9/16/2010 | C86: 481.06 | D86: -0.01871946426
A87: goog | B87: 9/15/2010 | C87: 480.64 | D87: -0.0008734533154
A88: goog | B88: 9/14/2010 | C88: 480.43 | D88: -0.0004370129196
A89: goog | B89: 9/13/2010 | C89: 482.27 | D89: 0.003822586975
A90: goog | B90: 9/10/2010 | C90: 476.14 | D90: -0.01279219456
A91: goog | B91: 9/9/2010 | C91: 476.18 | D91: 8.400537639e-05
A92: goog | B92: 9/8/2010 | C92: 470.58 | D92: -0.01182995756
A93: goog | B93: 9/7/2010 | C93: 464.4 | D93: -0.01321972663
A94: goog | B94: 9/3/2010 | C94: 470.3 | D94: 0.01262453913
A95: goog | B95: 9/2/2010 | C95: 463.18 | D95: -0.01525504152
A96: goog | B96: 9/1/2010 | C96: 460.33 | D96: -0.006172123848
A97: goog | B97: 8/31/2010 | C97: 450.02 | D97: -0.02265159736
A98: goog | B98: 8/30/2010 | C98: 452.69 | D98: 0.005915538293
A99: goog | B99: 8/27/2010 | C99: 458.83 | D99: 0.01347220657
A100: goog | B100: 8/26/2010 | C100: 450.98 | D100: -0.01725677846
A101: goog | B101: 8/25/2010 | C101: 454.62 | D101: 0.00803891255
A102: goog | B102: 8/24/2010 | C102: 451.39 | D102: -0.007130194334
A103: goog | B103: 8/23/2010 | C103: 464.07 | D103: 0.02770369208
A104: goog | B104: 8/20/2010 | C104: 462.02 | D104: -0.004427222729
A105: goog | B105: 8/19/2010 | C105: 467.97 | D105: 0.01279601111
A106: goog | B106: 8/18/2010 | C106: 482.15 | D106: 0.02985107766
A107: goog | B107: 8/17/2010 | C107: 490.52 | D107: 0.01721078394
A108: goog | B108: 8/16/2010 | C108: 485.59 | D108: -0.01010140644
A109: goog | B109: 8/13/2010 | C109: 486.35 | D109: 0.001563882863
A110: goog | B110: 8/12/2010 | C110: 492.01 | D110: 0.01157051217
A111: goog | B111: 8/11/2010 | C111: 491.74 | D111: -0.000548919963
A112: goog | B112: 8/10/2010 | C112: 503.71 | D112: 0.02405058412
A113: goog | B113: 8/9/2010 | C113: 505.35 | D113: 0.003250552879
A114: goog | B114: 8/6/2010 | C114: 500.22 | D114: -0.01020325687
A115: goog | B115: 8/5/2010 | C115: 508.1 | D115: 0.01563027695
A116: goog | B116: 8/4/2010 | C116: 506.32 | D116: -0.003509398133
A117: goog | B117: 8/3/2010 | C117: 489.83 | D117: -0.03311048834
A118: goog | B118: 8/2/2010 | C118: 490.41 | D118: 0.001183383799
A119: goog | B119: 7/30/2010 | C119: 484.85 | D119: -0.01140221118
A120: goog | B120: 7/29/2010 | C120: 484.99 | D120: 0.0002887074177
A121: goog | B121: 7/28/2010 | C121: 484.35 | D121: -0.001320486296
A122: goog | B122: 7/27/2010 | C122: 492.63 | D122: 0.0169505993
A123: goog | B123: 7/26/2010 | C123: 488.97 | D123: -0.007457247272
A124: goog | B124: 7/23/2010 | C124: 490.06 | D124: 0.002226694688
A125: goog | B125: 7/22/2010 | C125: 484.81 | D125: -0.01077077098
A126: goog | B126: 7/21/2010 | C126: 477.5 | D126: -0.01519290168
A127: goog | B127: 7/20/2010 | C127: 481.59 | D127: 0.008528969739
A128: goog | B128: 7/19/2010 | C128: 466.18 | D128: -0.03252130402
A129: goog | B129: 7/16/2010 | C129: 459.61 | D129: -0.01419352185
A130: goog | B130: 7/15/2010 | C130: 494.02 | D130: =LN(C130/C129) -> 0.07219769841
A131: goog | B131: 7/14/2010 | C131: 491.34 | D131: -0.005439649688
A132: goog | B132: 7/13/2010 | C132: 489.2 | D132: -0.004364948697
A133: goog | B133: 7/12/2010 | C133: 475.83 | D133: -0.02771075623
A134: goog | B134: 7/9/2010 | C134: 467.49 | D134: -0.01768268946
A135: goog | B135: 7/8/2010 | C135: 456.56 | D135: -0.0236578319
A136: goog | B136: 7/7/2010 | C136: 450.2 | D136: -0.01402819776
A137: goog | B137: 7/6/2010 | C137: 436.07 | D137: -0.03188914755
A138: goog | B138: 7/2/2010 | C138: 436.55 | D138: 0.001100135336
A139: goog | B139: 7/1/2010 | C139: 439.49 | D139: 0.006712047481
A140: goog | B140: 6/30/2010 | C140: 444.95 | D140: 0.01234695257
A141: goog | B141: 6/29/2010 | C141: 454.26 | D141: 0.02070780504
A142: goog | B142: 6/28/2010 | C142: 472.08 | D142: 0.03847874141
A143: goog | B143: 6/25/2010 | C143: 472.68 | D143: 0.001270164022
A144: goog | B144: 6/24/2010 | C144: 475.1 | D144: 0.005106681422
A145: goog | B145: 6/23/2010 | C145: 482.05 | D145: 0.01452253492
A146: goog | B146: 6/22/2010 | C146: 486.25 | D146: 0.008675051822
A147: goog | B147: 6/21/2010 | C147: 488.56 | D147: 0.004739393982
A148: goog | B148: 6/18/2010 | C148: 500.03 | D148: 0.02320580771
A149: goog | B149: 6/17/2010 | C149: 500.08 | D149: 9.998900129e-05
A150: goog | B150: 6/16/2010 | C150: 501.27 | D150: 0.002376792451
A151: goog | B151: 6/15/2010 | C151: 497.99 | D151: -0.006564881572
A152: goog | B152: 6/14/2010 | C152: 483.19 | D152: -0.03017004546
A153: goog | B153: 6/11/2010 | C153: 488.5 | D153: 0.01092952044
A154: goog | B154: 6/10/2010 | C154: 487.01 | D154: -0.00305481473
A155: goog | B155: 6/9/2010 | C155: 474.02 | D155: -0.02703514185
A156: goog | B156: 6/8/2010 | C156: 484.78 | D156: 0.02244566488
A157: goog | B157: 6/7/2010 | C157: 485.52 | D157: 0.001525301749
A158: goog | B158: 6/4/2010 | C158: 498.72 | D158: 0.02682433449
A159: goog | B159: 6/3/2010 | C159: 505.6 | D159: 0.01370102681
A160: goog | B160: 6/2/2010 | C160: 493.37 | D160: -0.02448644318
A161: goog | B161: 6/1/2010 | C161: 482.37 | D161: -0.02254794523
A162: goog | B162: 5/28/2010 | C162: 485.63 | D162: 0.006735562655
A163: goog | B163: 5/27/2010 | C163: 490.46 | D163: 0.009896709162
A164: goog | B164: 5/26/2010 | C164: 475.47 | D164: -0.03103993773
A165: goog | B165: 5/25/2010 | C165: 477.07 | D165: 0.003359442133
A166: goog | B166: 5/24/2010 | C166: 477.16 | D166: 0.0001886337681
A167: goog | B167: 5/21/2010 | C167: 472.05 | D167: -0.01076695224
A168: goog | B168: 5/20/2010 | C168: 475.01 | D168: 0.006250944266
A169: goog | B169: 5/19/2010 | C169: 494.43 | D169: 0.04006972747
A170: goog | B170: 5/18/2010 | C170: 498.37 | D170: 0.007937189131
A171: goog | B171: 5/17/2010 | C171: 507.97 | D171: 0.01907961767
A172: goog | B172: 5/14/2010 | C172: 507.53 | D172: -0.0008665682472
A173: goog | B173: 5/13/2010 | C173: 510.88 | D173: 0.006578906497
A174: goog | B174: 5/12/2010 | C174: 505.39 | D174: -0.01080432052
A175: goog | B175: 5/11/2010 | C175: 509.05 | D175: 0.007215835103
A176: goog | B176: 5/10/2010 | C176: 521.65 | D176: 0.02445062136
A177: goog | B177: 5/7/2010 | C177: 493.14 | D177: -0.05620375553
A178: goog | B178: 5/6/2010 | C178: 498.67 | D178: 0.01115144495
A179: goog | B179: 5/5/2010 | C179: 509.76 | D179: 0.02199547239
A180: goog | B180: 5/4/2010 | C180: 506.37 | D180: -0.006672399353
A181: goog | B181: 5/3/2010 | C181: 530.6 | D181: 0.04674081433
A182: goog | B182: 4/30/2010 | C182: 525.7 | D182: -0.009277733878
A183: goog | B183: 4/29/2010 | C183: 532 | D183: 0.01191278152
A184: goog | B184: 4/28/2010 | C184: 529.19 | D184: -0.005295953727
A185: goog | B185: 4/27/2010 | C185: 529.06 | D185: -0.0002456886381
A186: goog | B186: 4/26/2010 | C186: 531.64 | D186: 0.004864721576
A187: goog | B187: 4/23/2010 | C187: 544.99 | D187: 0.02480087732
A188: goog | B188: 4/22/2010 | C188: 547.06 | D188: 0.003791039749
A189: goog | B189: 4/21/2010 | C189: 554.3 | D189: 0.01314757081
A190: goog | B190: 4/20/2010 | C190: 555.04 | D190: 0.001334126796
A191: goog | B191: 4/19/2010 | C191: 550.1 | D191: -0.00894010334
A192: goog | B192: 4/16/2010 | C192: 550.15 | D192: 9.088843451e-05
A193: goog | B193: 4/15/2010 | C193: 595.3 | D193: 0.07887451184
A194: goog | B194: 4/14/2010 | C194: 589 | D194: =LN(C194/C193) -> -0.01063929651
A195: goog | B195: 4/13/2010 | C195: 586.77 | D195: -0.003793263434
A196: goog | B196: 4/12/2010 | C196: 572.73 | D196: -0.02421851874
A197: goog | B197: 4/9/2010 | C197: 566.22 | D197: -0.01143170621
A198: goog | B198: 4/8/2010 | C198: 567.49 | D198: 0.002240432794
A199: goog | B199: 4/7/2010 | C199: 563.54 | D199: -0.006984812179
A200: goog | B200: 4/6/2010 | C200: 568.22 | D200: 0.008270351798
... 51 more rows
